[Event "Titled Tuesday Blitz July 11 Late 2023"]
[White "Harish, Neeraj"]
[Black "Prydun, Andriy"]
[WhiteFideId "30958130"]
[BlackFideId "14145898"]
[WhiteElo "2307"]
[BlackElo "2383"]
[Result "0-1"]
[Round "9"]
[TimeControl "180+2"]
[Date "2023.07.11"]
[WhiteClock "0:01:56"]
[BlackClock "0:01:21"]
[Board "86"]

1. e4 {[%clk 0:02:58]}  d5 {[%clk 0:02:52]} 2. exd5 {[%clk 0:02:57]}  Qxd5 {[%clk 0:02:53]} 3. Nc3 {[%clk 0:02:58]}  Qd6 {[%clk 0:02:51]} 4. d4 {[%clk 0:02:56]}  Nf6 {[%clk 0:02:51]} 5. Nf3 {[%clk 0:02:56]}  c6 {[%clk 0:02:50]} 6. g3 {[%clk 0:02:56]}  Bg4 {[%clk 0:02:44]} 7. Bg2 {[%clk 0:02:52]}  e6 {[%clk 0:02:43]} 8. Bf4 {[%clk 0:02:51]}  Qd8 {[%clk 0:02:42]} 9. O-O {[%clk 0:02:51]}  Bd6 {[%clk 0:02:34]} 10. Bxd6 {[%clk 0:02:50]}  Qxd6 {[%clk 0:02:35]} 11. h3 {[%clk 0:02:51]}  Bxf3 {[%clk 0:02:35]} 12. Bxf3 {[%clk 0:02:49]}  O-O {[%clk 0:02:34]} 13. Ne4 {[%clk 0:02:49]}  Nxe4 {[%clk 0:02:34]} 14. Bxe4 {[%clk 0:02:49]}  Nd7 {[%clk 0:02:32]} 15. Bg2 {[%clk 0:02:50]}  Nf6 {[%clk 0:02:27]} 16. c3 {[%clk 0:02:48]}  Nd5 {[%clk 0:02:25]} 17. Re1 {[%clk 0:02:29]}  Rfd8 {[%clk 0:02:22]} 18. Qc2 {[%clk 0:02:26]}  a5 {[%clk 0:01:46]} 19. Rad1 {[%clk 0:02:14]}  a4 {[%clk 0:01:46]} 20. b3 {[%clk 0:02:10]}  axb3 {[%clk 0:01:45]} 21. axb3 {[%clk 0:02:11]}  Ra3 {[%clk 0:01:41]} 22. Ra1 {[%clk 0:02:07]}  Rda8 {[%clk 0:01:39]} 23. Qb2 {[%clk 0:02:07]}  h5 {[%clk 0:01:25]} 24. Rxa3 {[%clk 0:02:04]}  Qxa3 {[%clk 0:01:21]} 25. Qa2 {[%clk 0:01:56]} 0-1


[Site "https://www.chess.com"]

[Event "Titled Tuesday Blitz July 11 Late 2023"]
[White "K2JW"]
[Black "Cooper, Aaron"]
[BlackFideId "2634945"]
[WhiteElo "2381"]
[BlackElo "2259"]
[Result "0-1"]
[Round "9"]
[TimeControl "180+2"]
[Date "2023.07.11"]
[WhiteClock "0:00:00"]
[BlackClock "0:00:17"]
[Board "87"]

1. d4 {[%clk 0:03:00]}  Nf6 {[%clk 0:02:59]} 2. c4 {[%clk 0:03:01]}  e6 {[%clk 0:02:58]} 3. Nf3 {[%clk 0:03:01]}  d5 {[%clk 0:02:58]} 4. Nc3 {[%clk 0:03:01]}  Be7 {[%clk 0:02:58]} 5. Bf4 {[%clk 0:03:01]}  O-O {[%clk 0:02:55]} 6. e3 {[%clk 0:03:01]}  c6 {[%clk 0:02:50]} 7. Bd3 {[%clk 0:03:00]}  dxc4 {[%clk 0:02:49]} 8. Bxc4 {[%clk 0:02:58]}  b5 {[%clk 0:02:49]} 9. Bd3 {[%clk 0:02:57]}  b4 {[%clk 0:02:42]} 10. Ne4 {[%clk 0:02:51]}  Nxe4 {[%clk 0:02:41]} 11. Bxe4 {[%clk 0:02:51]}  Ba6 {[%clk 0:02:41]} 12. Qc2 {[%clk 0:02:31]}  f5 {[%clk 0:02:40]} 13. Bxc6 {[%clk 0:02:16]}  Qa5 {[%clk 0:02:10]} 14. b3 {[%clk 0:01:41]}  Nxc6 {[%clk 0:01:29]} 15. Qxc6 {[%clk 0:01:40]}  Rac8 {[%clk 0:01:24]} 16. Qxe6+ {[%clk 0:01:28]}  Rf7 {[%clk 0:01:24]} 17. Ne5 {[%clk 0:00:57]}  Rf8 {[%clk 0:01:24]} 18. Nxf7 {[%clk 0:00:49]}  Rxf7 {[%clk 0:01:23]} 19. Kd2 {[%clk 0:00:28]}  Qb5 {[%clk 0:01:10]} 20. Qc4 {[%clk 0:00:23]}  Qb7 {[%clk 0:01:09]} 21. Qe6 {[%clk 0:00:19]}  Qb5 {[%clk 0:00:45]} 22. Qc4 {[%clk 0:00:19]}  Qb7 {[%clk 0:00:44]} 23. Qc7 {[%clk 0:00:13]}  Qxg2 {[%clk 0:00:40]} 24. Bg3 {[%clk 0:00:13]}  Qe4 {[%clk 0:00:38]} 25. Qc2 {[%clk 0:00:09]}  Qf3 {[%clk 0:00:31]} 26. Kc1 {[%clk 0:00:09]}  f4 {[%clk 0:00:27]} 27. Qd1 {[%clk 0:00:02]}  Qc6+ {[%clk 0:00:21]} 28. Kb2 {[%clk 0:00:02]}  fxg3 {[%clk 0:00:20]} 29. Rc1 {[%clk 0:00:02]}  Rxf2+ {[%clk 0:00:20]} 30. Ka1 {[%clk 0:00:00]}  Qg2 {[%clk 0:00:17]} 0-1


[Site "https://www.chess.com"]

[Event "Titled Tuesday Blitz July 11 Late 2023"]
[White "Pesotskiy, Mikhail"]
[Black "Kirillov, Dmitry"]
[WhiteFideId "34164453"]
[BlackFideId "34180572"]
[WhiteElo "2382"]
[BlackElo "2525"]
[Result "0-1"]
[Round "9"]
[TimeControl "180+2"]
[Date "2023.07.11"]
[WhiteClock "0:00:00"]
[BlackClock "0:00:12"]
[Board "89"]

1. d4 {[%clk 0:03:00]}  Nf6 {[%clk 0:02:54]} 2. c4 {[%clk 0:03:00]}  a6 {[%clk 0:02:43]} 3. Nc3 {[%clk 0:02:54]}  c5 {[%clk 0:02:38]} 4. dxc5 {[%clk 0:02:32]}  e6 {[%clk 0:02:35]} 5. Na4 {[%clk 0:02:29]}  Bxc5 {[%clk 0:02:29]} 6. Nxc5 {[%clk 0:02:28]}  Qa5+ {[%clk 0:02:29]} 7. Qd2 {[%clk 0:02:25]}  Qxc5 {[%clk 0:02:29]} 8. e3 {[%clk 0:02:25]}  O-O {[%clk 0:02:29]} 9. Nf3 {[%clk 0:02:19]}  Ne4 {[%clk 0:02:29]} 10. Qd4 {[%clk 0:02:18]}  Qa5+ {[%clk 0:02:27]} 11. Bd2 {[%clk 0:02:18]}  Nxd2 {[%clk 0:02:27]} 12. Qxd2 {[%clk 0:02:19]}  Qxd2+ {[%clk 0:02:25]} 13. Kxd2 {[%clk 0:02:20]}  b6 {[%clk 0:02:19]} 14. Bd3 {[%clk 0:02:12]}  Bb7 {[%clk 0:02:19]} 15. Rhd1 {[%clk 0:02:12]}  d6 {[%clk 0:02:16]} 16. Rac1 {[%clk 0:02:06]}  Nd7 {[%clk 0:02:15]} 17. Ke2 {[%clk 0:02:06]}  Rfd8 {[%clk 0:02:13]} 18. Bb1 {[%clk 0:02:06]}  Nf6 {[%clk 0:02:11]} 19. Rd4 {[%clk 0:02:05]}  Kf8 {[%clk 0:02:10]} 20. Rcd1 {[%clk 0:02:03]}  Ke7 {[%clk 0:02:10]} 21. Ng5 {[%clk 0:02:04]}  h6 {[%clk 0:02:07]} 22. Nf3 {[%clk 0:01:28]}  Rac8 {[%clk 0:02:03]} 23. b3 {[%clk 0:01:10]}  a5 {[%clk 0:02:00]} 24. Ne1 {[%clk 0:01:07]}  d5 {[%clk 0:01:55]} 25. cxd5 {[%clk 0:01:07]}  Nxd5 {[%clk 0:01:52]} 26. Kf1 {[%clk 0:01:01]}  e5 {[%clk 0:01:04]} 27. R4d2 {[%clk 0:00:27]}  Ba6+ {[%clk 0:01:02]} 28. Bd3 {[%clk 0:00:25]}  Nc3 {[%clk 0:01:02]} 29. Bxa6 {[%clk 0:00:24]}  Nxd1 {[%clk 0:00:59]} 30. Rxd1 {[%clk 0:00:23]}  Rxd1 {[%clk 0:01:00]} 31. Bxc8 {[%clk 0:00:23]}  Ra1 {[%clk 0:00:59]} 32. a4 {[%clk 0:00:22]}  Rb1 {[%clk 0:00:57]} 33. Ba6 {[%clk 0:00:22]}  Rxb3 {[%clk 0:00:53]} 34. Ke2 {[%clk 0:00:18]}  e4 {[%clk 0:00:50]} 35. f3 {[%clk 0:00:15]}  Rb2+ {[%clk 0:00:49]} 36. Kf1 {[%clk 0:00:15]}  f5 {[%clk 0:00:49]} 37. fxe4 {[%clk 0:00:14]}  fxe4 {[%clk 0:00:49]} 38. h3 {[%clk 0:00:06]}  g5 {[%clk 0:00:45]} 39. g3 {[%clk 0:00:04]}  Kd6 {[%clk 0:00:42]} 40. h4 {[%clk 0:00:04]}  Kc5 {[%clk 0:00:40]} 41. hxg5 {[%clk 0:00:03]}  hxg5 {[%clk 0:00:39]} 42. Bb5 {[%clk 0:00:04]}  Kb4 {[%clk 0:00:37]} 43. g4 {[%clk 0:00:02]}  Kc3 {[%clk 0:00:36]} 44. Be8 {[%clk 0:00:01]}  Kd2 {[%clk 0:00:33]} 45. Ng2 {[%clk 0:00:01]}  Kd3 {[%clk 0:00:25]} 46. Bc6 {[%clk 0:00:01]}  Kc4 {[%clk 0:00:12]} 47. Be8 {[%clk 0:00:00]}  Kb4 {[%clk 0:00:12]} 0-1


[Site "https://www.chess.com"]

[Event "Titled Tuesday Blitz July 11 Late 2023"]
[White "Prieto Aranguren, Alain"]
[Black "Graif, William"]
[WhiteFideId "2268906"]
[BlackFideId "2609835"]
[WhiteElo "2377"]
[BlackElo "2520"]
[Result "0-1"]
[Round "9"]
[TimeControl "180+2"]
[Date "2023.07.11"]
[WhiteClock "0:00:27"]
[BlackClock "0:00:17"]
[Board "90"]

1. e4 {[%clk 0:03:00]}  e5 {[%clk 0:02:56]} 2. Nf3 {[%clk 0:02:59]}  Bc5 {[%clk 0:02:51]} 3. c3 {[%clk 0:02:56]}  d5 {[%clk 0:02:50]} 4. exd5 {[%clk 0:02:52]}  Nf6 {[%clk 0:02:49]} 5. Bb5+ {[%clk 0:02:46]}  c6 {[%clk 0:02:46]} 6. dxc6 {[%clk 0:02:43]}  bxc6 {[%clk 0:02:47]} 7. Be2 {[%clk 0:02:36]}  e4 {[%clk 0:02:45]} 8. Nd4 {[%clk 0:02:31]}  Bxd4 {[%clk 0:02:38]} 9. cxd4 {[%clk 0:02:32]}  Qxd4 {[%clk 0:02:32]} 10. O-O {[%clk 0:02:32]}  Bf5 {[%clk 0:02:17]} 11. Re1 {[%clk 0:02:33]}  O-O {[%clk 0:02:16]} 12. Nc3 {[%clk 0:02:31]}  Nbd7 {[%clk 0:01:59]} 13. b3 {[%clk 0:02:31]}  Ne5 {[%clk 0:01:50]} 14. Bb2 {[%clk 0:02:23]}  Nd3 {[%clk 0:01:38]} 15. Bxd3 {[%clk 0:02:22]}  Qxd3 {[%clk 0:01:39]} 16. Ne2 {[%clk 0:02:14]}  Nd5 {[%clk 0:01:25]} 17. Ng3 {[%clk 0:02:13]}  Bg6 {[%clk 0:01:21]} 18. Rc1 {[%clk 0:02:00]}  f5 {[%clk 0:01:02]} 19. Rxc6 {[%clk 0:01:49]}  f4 {[%clk 0:01:01]} 20. Nf1 {[%clk 0:01:17]}  f3 {[%clk 0:00:59]} 21. g3 {[%clk 0:01:15]}  Rac8 {[%clk 0:00:41]} 22. Qc1 {[%clk 0:01:13]}  Ne7 {[%clk 0:00:30]} 23. Rc3 {[%clk 0:01:08]}  Qd7 {[%clk 0:00:28]} 24. Qa1 {[%clk 0:01:03]}  Qh3 {[%clk 0:00:26]} 25. Ne3 {[%clk 0:01:02]}  Nd5 {[%clk 0:00:23]} 26. Kh1 {[%clk 0:00:33]}  Nxe3 {[%clk 0:00:22]} 27. Rg1 {[%clk 0:00:27]}  Ng4 {[%clk 0:00:17]} 0-1


[Site "https://www.chess.com"]

[Event "Titled Tuesday Blitz July 11 Late 2023"]
[White "kripri"]
[Black "Dragomirescu, Robin-Alexandru"]
[BlackFideId "1213849"]
[WhiteElo "2331"]
[BlackElo "2487"]
[Result "0-1"]
[Round "9"]
[TimeControl "180+2"]
[Date "2023.07.11"]
[WhiteClock "0:00:07"]
[BlackClock "0:02:08"]
[Board "92"]

1. e4 {[%clk 0:03:00]}  c5 {[%clk 0:02:58]} 2. Nf3 {[%clk 0:03:01]}  Nc6 {[%clk 0:02:59]} 3. d4 {[%clk 0:03:01]}  cxd4 {[%clk 0:03:00]} 4. Nxd4 {[%clk 0:03:01]}  Nf6 {[%clk 0:03:00]} 5. Nc3 {[%clk 0:03:00]}  e5 {[%clk 0:03:01]} 6. Ndb5 {[%clk 0:02:59]}  d6 {[%clk 0:03:02]} 7. Bg5 {[%clk 0:03:00]}  a6 {[%clk 0:03:02]} 8. Na3 {[%clk 0:03:00]}  b5 {[%clk 0:03:03]} 9. Nd5 {[%clk 0:03:00]}  Be7 {[%clk 0:03:03]} 10. Bxf6 {[%clk 0:03:01]}  Bxf6 {[%clk 0:03:04]} 11. c4 {[%clk 0:03:01]}  b4 {[%clk 0:03:04]} 12. Nc2 {[%clk 0:03:02]}  a5 {[%clk 0:03:04]} 13. Be2 {[%clk 0:02:59]}  O-O {[%clk 0:03:05]} 14. O-O {[%clk 0:02:59]}  a4 {[%clk 0:03:05]} 15. Ncxb4 {[%clk 0:02:54]}  Nxb4 {[%clk 0:03:05]} 16. Nxb4 {[%clk 0:02:55]}  Bg5 {[%clk 0:02:52]} 17. Qd3 {[%clk 0:02:30]}  Qb6 {[%clk 0:02:49]} 18. a3 {[%clk 0:02:18]}  Be6 {[%clk 0:02:48]} 19. Rfd1 {[%clk 0:02:07]}  Rfd8 {[%clk 0:02:45]} 20. Qc3 {[%clk 0:01:28]}  Rab8 {[%clk 0:02:38]} 21. Nd3 {[%clk 0:01:25]}  Rdc8 {[%clk 0:02:35]} 22. c5 {[%clk 0:01:16]}  dxc5 {[%clk 0:02:29]} 23. Qxe5 {[%clk 0:01:04]}  Bf6 {[%clk 0:02:29]} 24. Qh5 {[%clk 0:01:03]}  c4 {[%clk 0:02:27]} 25. Nb4 {[%clk 0:00:47]}  Bxb2 {[%clk 0:02:26]} 26. Rab1 {[%clk 0:00:43]}  Bxa3 {[%clk 0:02:26]} 27. Nc2 {[%clk 0:00:27]}  Qxb1 {[%clk 0:02:26]} 28. Rxb1 {[%clk 0:00:28]}  Rxb1+ {[%clk 0:02:25]} 29. Bf1 {[%clk 0:00:28]}  Bc5 {[%clk 0:02:18]} 30. Qe5 {[%clk 0:00:25]}  a3 {[%clk 0:02:15]} 31. Qc3 {[%clk 0:00:13]}  a2 {[%clk 0:02:10]} 32. g4 {[%clk 0:00:12]}  Ra8 {[%clk 0:02:09]} 33. Kg2 {[%clk 0:00:11]}  Rc1 {[%clk 0:02:09]} 34. Qb2 {[%clk 0:00:05]}  Rxc2 {[%clk 0:02:09]} 35. Qxc2 {[%clk 0:00:06]}  a1=Q {[%clk 0:02:08]} 36. Bxc4 {[%clk 0:00:07]} 0-1


[Site "https://www.chess.com"]

[Event "Titled Tuesday Blitz July 11 Late 2023"]
[White "Chemin, Justo Reinaldo"]
[Black "Luong Phuong Hanh"]
[WhiteFideId "2101580"]
[BlackFideId "12401013"]
[WhiteElo "2257"]
[BlackElo "2450"]
[Result "0-1"]
[Round "9"]
[TimeControl "180+2"]
[Date "2023.07.11"]
[WhiteClock "0:00:35"]
[BlackClock "0:01:42"]
[Board "96"]

1. d4 {[%clk 0:03:00]}  Nf6 {[%clk 0:02:58]} 2. Nf3 {[%clk 0:03:00]}  g6 {[%clk 0:02:58]} 3. e3 {[%clk 0:03:00]}  Bg7 {[%clk 0:02:57]} 4. b3 {[%clk 0:03:01]}  O-O {[%clk 0:02:56]} 5. Bb2 {[%clk 0:03:01]}  d5 {[%clk 0:02:56]} 6. Nbd2 {[%clk 0:03:01]}  Nbd7 {[%clk 0:02:53]} 7. Bd3 {[%clk 0:03:01]}  b6 {[%clk 0:02:52]} 8. c4 {[%clk 0:02:59]}  Bb7 {[%clk 0:02:50]} 9. Qe2 {[%clk 0:02:56]}  Re8 {[%clk 0:02:48]} 10. h4 {[%clk 0:02:53]}  Ne4 {[%clk 0:02:42]} 11. cxd5 {[%clk 0:02:47]}  Nxd2 {[%clk 0:02:41]} 12. Qxd2 {[%clk 0:02:42]}  Bxd5 {[%clk 0:02:39]} 13. h5 {[%clk 0:02:43]}  Bxf3 {[%clk 0:02:33]} 14. gxf3 {[%clk 0:02:42]}  e5 {[%clk 0:02:34]} 15. hxg6 {[%clk 0:02:40]}  hxg6 {[%clk 0:02:33]} 16. d5 {[%clk 0:02:29]}  Nc5 {[%clk 0:02:29]} 17. Bc4 {[%clk 0:02:23]}  Qd6 {[%clk 0:02:25]} 18. O-O-O {[%clk 0:02:12]}  a6 {[%clk 0:02:04]} 19. f4 {[%clk 0:01:57]}  b5 {[%clk 0:02:00]} 20. Be2 {[%clk 0:01:56]}  Ne4 {[%clk 0:01:58]} 21. Qe1 {[%clk 0:01:51]}  exf4 {[%clk 0:01:55]} 22. Bxg7 {[%clk 0:01:45]}  Kxg7 {[%clk 0:01:56]} 23. f3 {[%clk 0:01:40]}  Ng3 {[%clk 0:01:53]} 24. Qc3+ {[%clk 0:01:36]}  Qe5 {[%clk 0:01:52]} 25. Qxe5+ {[%clk 0:01:29]}  Rxe5 {[%clk 0:01:53]} 26. Bd3 {[%clk 0:01:12]}  Nxh1 {[%clk 0:01:52]} 27. Rxh1 {[%clk 0:01:11]}  Rxe3 {[%clk 0:01:47]} 28. Be4 {[%clk 0:01:07]}  Rd8 {[%clk 0:01:46]} 29. d6 {[%clk 0:00:54]}  Rxd6 {[%clk 0:01:45]} 30. Bb7 {[%clk 0:00:35]}  Re2 {[%clk 0:01:42]} 0-1


[Site "https://www.chess.com"]

[Event "Titled Tuesday Blitz July 11 Late 2023"]
[White "Ncatt"]
[Black "Schachpanda_Youtube"]
[WhiteElo "2407"]
[BlackElo "2234"]
[Result "0-1"]
[Round "9"]
[TimeControl "180+2"]
[Date "2023.07.11"]
[WhiteClock "0:00:22"]
[BlackClock "0:00:09"]
[Board "98"]

1. e4 {[%clk 0:03:00]}  d6 {[%clk 0:02:59]} 2. d4 {[%clk 0:03:00]}  Nf6 {[%clk 0:02:59]} 3. Nc3 {[%clk 0:02:59]}  g6 {[%clk 0:02:59]} 4. Nf3 {[%clk 0:03:00]}  Bg7 {[%clk 0:03:00]} 5. Be3 {[%clk 0:02:59]}  c6 {[%clk 0:02:57]} 6. Bd3 {[%clk 0:02:59]}  O-O {[%clk 0:02:56]} 7. h3 {[%clk 0:02:59]}  Nbd7 {[%clk 0:02:54]} 8. Ne2 {[%clk 0:02:59]}  e5 {[%clk 0:02:53]} 9. c3 {[%clk 0:02:59]}  Re8 {[%clk 0:02:53]} 10. Ng3 {[%clk 0:02:59]}  d5 {[%clk 0:02:46]} 11. dxe5 {[%clk 0:02:54]}  Nxe5 {[%clk 0:02:46]} 12. Nxe5 {[%clk 0:02:46]}  Rxe5 {[%clk 0:02:46]} 13. f4 {[%clk 0:02:39]}  Re8 {[%clk 0:02:45]} 14. e5 {[%clk 0:02:39]}  Nd7 {[%clk 0:02:44]} 15. O-O {[%clk 0:02:37]}  f6 {[%clk 0:02:43]} 16. Qc2 {[%clk 0:02:21]}  fxe5 {[%clk 0:02:39]} 17. fxe5 {[%clk 0:02:21]}  Nxe5 {[%clk 0:02:37]} 18. Rae1 {[%clk 0:02:21]}  Nxd3 {[%clk 0:02:29]} 19. Qxd3 {[%clk 0:02:20]}  Be6 {[%clk 0:02:28]} 20. Bd4 {[%clk 0:02:18]}  Qd7 {[%clk 0:02:26]} 21. h4 {[%clk 0:02:05]}  Bxd4+ {[%clk 0:02:12]} 22. cxd4 {[%clk 0:01:58]}  Rf8 {[%clk 0:02:02]} 23. h5 {[%clk 0:01:54]}  Rxf1+ {[%clk 0:02:02]} 24. Rxf1 {[%clk 0:01:54]}  Qg7 {[%clk 0:01:51]} 25. Qe3 {[%clk 0:01:51]}  Re8 {[%clk 0:01:47]} 26. h6 {[%clk 0:01:49]}  Qc7 {[%clk 0:01:21]} 27. Qg5 {[%clk 0:01:43]}  Qe7 {[%clk 0:01:01]} 28. Qe5 {[%clk 0:01:25]}  Bg4 {[%clk 0:00:57]} 29. Qf4 {[%clk 0:01:23]}  Bd7 {[%clk 0:00:50]} 30. Qc7 {[%clk 0:01:14]}  Bg4 {[%clk 0:00:44]} 31. Qf4 {[%clk 0:01:12]}  Qe3+ {[%clk 0:00:38]} 32. Kh2 {[%clk 0:01:05]}  Qxf4 {[%clk 0:00:35]} 33. Rxf4 {[%clk 0:01:06]}  Bd7 {[%clk 0:00:33]} 34. Rf3 {[%clk 0:01:02]}  Re1 {[%clk 0:00:28]} 35. Rb3 {[%clk 0:01:01]}  b6 {[%clk 0:00:28]} 36. a3 {[%clk 0:00:49]}  Kf7 {[%clk 0:00:28]} 37. Rf3+ {[%clk 0:00:46]}  Ke7 {[%clk 0:00:28]} 38. Nf1 {[%clk 0:00:44]}  Re4 {[%clk 0:00:23]} 39. Rd3 {[%clk 0:00:42]}  Rh4+ {[%clk 0:00:23]} 40. Kg3 {[%clk 0:00:41]}  Rxh6 {[%clk 0:00:21]} 41. Ne3 {[%clk 0:00:41]}  Bf5 {[%clk 0:00:18]} 42. Rd2 {[%clk 0:00:41]}  Be4 {[%clk 0:00:17]} 43. Rf2 {[%clk 0:00:40]}  Rh5 {[%clk 0:00:16]} 44. Ng4 {[%clk 0:00:40]}  Rg5 {[%clk 0:00:15]} 45. Kh4 {[%clk 0:00:39]}  Rf5 {[%clk 0:00:15]} 46. Re2 {[%clk 0:00:39]}  h5 {[%clk 0:00:13]} 47. Nf2 {[%clk 0:00:38]}  Rf4+ {[%clk 0:00:13]} 48. Kg3 {[%clk 0:00:38]}  g5 {[%clk 0:00:14]} 49. Nh3 {[%clk 0:00:38]}  Rg4+ {[%clk 0:00:13]} 50. Kh2 {[%clk 0:00:38]}  Kf6 {[%clk 0:00:12]} 51. Rf2+ {[%clk 0:00:37]}  Kg6 {[%clk 0:00:13]} 52. Re2 {[%clk 0:00:36]}  Kf5 {[%clk 0:00:11]} 53. g3 {[%clk 0:00:35]}  h4 {[%clk 0:00:08]} 54. Rf2+ {[%clk 0:00:33]}  Kg6 {[%clk 0:00:07]} 55. gxh4 {[%clk 0:00:33]}  Rxh4 {[%clk 0:00:07]} 56. Kg3 {[%clk 0:00:33]}  Bf5 {[%clk 0:00:04]} 57. Ng1 {[%clk 0:00:31]}  Rg4+ {[%clk 0:00:04]} 58. Kh2 {[%clk 0:00:30]}  Rh4+ {[%clk 0:00:05]} 59. Kg2 {[%clk 0:00:30]}  Rg4+ {[%clk 0:00:05]} 60. Kf1 {[%clk 0:00:30]}  Be4 {[%clk 0:00:05]} 61. Rf8 {[%clk 0:00:29]}  Rf4+ {[%clk 0:00:05]} 62. Rxf4 {[%clk 0:00:28]}  gxf4 {[%clk 0:00:06]} 63. Kf2 {[%clk 0:00:29]}  Kf5 {[%clk 0:00:05]} 64. Ne2 {[%clk 0:00:28]}  Bd3 {[%clk 0:00:05]} 65. Nc3 {[%clk 0:00:27]}  b5 {[%clk 0:00:04]} 66. b4 {[%clk 0:00:27]}  a6 {[%clk 0:00:04]} 67. Kf3 {[%clk 0:00:27]}  Be4+ {[%clk 0:00:04]} 68. Kf2 {[%clk 0:00:27]}  Bd3 {[%clk 0:00:05]} 69. Kf3 {[%clk 0:00:27]}  Bc2 {[%clk 0:00:05]} 70. Kf2 {[%clk 0:00:27]}  Kg4 {[%clk 0:00:05]} 71. Ne2 {[%clk 0:00:26]}  f3 {[%clk 0:00:05]} 72. Nc3 {[%clk 0:00:27]}  Kf4 {[%clk 0:00:05]} 73. Na2 {[%clk 0:00:25]}  Ke4 {[%clk 0:00:05]} 74. Nc1 {[%clk 0:00:25]}  Kxd4 {[%clk 0:00:05]} 75. Kxf3 {[%clk 0:00:25]}  Kc3 {[%clk 0:00:05]} 76. Ke3 {[%clk 0:00:25]}  Kb2 {[%clk 0:00:05]} 77. Ne2 {[%clk 0:00:26]}  Kxa3 {[%clk 0:00:06]} 78. Nd4 {[%clk 0:00:27]}  Kxb4 {[%clk 0:00:06]} 79. Nxc6+ {[%clk 0:00:27]}  Kb3 {[%clk 0:00:06]} 80. Na5+ {[%clk 0:00:23]}  Kb4 {[%clk 0:00:06]} 81. Nc6+ {[%clk 0:00:23]}  Kc3 {[%clk 0:00:05]} 82. Nd4 {[%clk 0:00:20]}  b4 {[%clk 0:00:05]} 83. Ne2+ {[%clk 0:00:19]}  Kb2 {[%clk 0:00:06]} 84. Kd2 {[%clk 0:00:20]}  b3 {[%clk 0:00:06]} 85. Nd4 {[%clk 0:00:20]}  a5 {[%clk 0:00:06]} 86. Nb5 {[%clk 0:00:19]}  a4 {[%clk 0:00:06]} 87. Nd4 {[%clk 0:00:18]}  a3 {[%clk 0:00:06]} 88. Nxc2 {[%clk 0:00:17]}  bxc2 {[%clk 0:00:06]} 89. Kd3 {[%clk 0:00:18]}  c1=Q {[%clk 0:00:07]} 90. Kd4 {[%clk 0:00:19]}  Qc4+ {[%clk 0:00:07]} 91. Ke5 {[%clk 0:00:19]}  d4 {[%clk 0:00:07]} 92. Ke4 {[%clk 0:00:19]}  d3+ {[%clk 0:00:08]} 93. Ke3 {[%clk 0:00:20]}  d2 {[%clk 0:00:09]} 94. Kxd2 {[%clk 0:00:20]}  Qd4+ {[%clk 0:00:07]} 95. Ke2 {[%clk 0:00:20]}  a2 {[%clk 0:00:08]} 96. Kf3 {[%clk 0:00:21]}  a1=Q {[%clk 0:00:08]} 97. Ke2 {[%clk 0:00:22]}  Qad1# {[%clk 0:00:09]} 0-1


[Site "https://www.chess.com"]

[Event "Titled Tuesday Blitz July 11 Late 2023"]
[White "Haitin, Ilja"]
[Black "Cardenas Carbajal, Nilson"]
[WhiteFideId "4501764"]
[BlackFideId "8401128"]
[WhiteElo "2396"]
[BlackElo "2182"]
[Result "0-1"]
[Round "9"]
[TimeControl "180+2"]
[Date "2023.07.11"]
[WhiteClock "0:00:00"]
[BlackClock "0:00:07"]
[Board "100"]

1. Nf3 {[%clk 0:03:00]}  d5 {[%clk 0:02:58]} 2. e3 {[%clk 0:03:00]}  Nf6 {[%clk 0:02:57]} 3. b3 {[%clk 0:02:59]}  Nc6 {[%clk 0:02:55]} 4. Bb2 {[%clk 0:02:59]}  Bg4 {[%clk 0:02:54]} 5. h3 {[%clk 0:02:59]}  Bh5 {[%clk 0:02:52]} 6. Bb5 {[%clk 0:02:58]}  Qd7 {[%clk 0:02:35]} 7. g4 {[%clk 0:02:57]}  Bg6 {[%clk 0:02:35]} 8. Ne5 {[%clk 0:02:56]}  Qd6 {[%clk 0:02:26]} 9. f4 {[%clk 0:02:47]}  e6 {[%clk 0:02:13]} 10. Ba3 {[%clk 0:02:43]}  Qd8 {[%clk 0:01:27]} 11. Nxc6 {[%clk 0:02:24]}  bxc6 {[%clk 0:01:25]} 12. Bxc6+ {[%clk 0:02:23]}  Nd7 {[%clk 0:01:24]} 13. Bxf8 {[%clk 0:02:21]}  Kxf8 {[%clk 0:01:21]} 14. Bxa8 {[%clk 0:02:20]}  Qxa8 {[%clk 0:01:20]} 15. d4 {[%clk 0:02:18]}  h5 {[%clk 0:01:17]} 16. g5 {[%clk 0:02:18]}  Be4 {[%clk 0:01:14]} 17. Rg1 {[%clk 0:02:16]}  c5 {[%clk 0:01:12]} 18. Nc3 {[%clk 0:02:15]}  Bf5 {[%clk 0:01:08]} 19. Qd2 {[%clk 0:02:15]}  Qc6 {[%clk 0:01:01]} 20. O-O-O {[%clk 0:02:14]}  a5 {[%clk 0:00:59]} 21. h4 {[%clk 0:02:13]}  Ke7 {[%clk 0:00:58]} 22. Kb2 {[%clk 0:02:12]}  c4 {[%clk 0:00:57]} 23. Na4 {[%clk 0:02:10]}  Rb8 {[%clk 0:00:53]} 24. Rc1 {[%clk 0:01:39]}  Qxa4 {[%clk 0:00:46]} 25. Qc3 {[%clk 0:01:10]}  Qb4 {[%clk 0:00:40]} 26. a3 {[%clk 0:01:03]}  Qb6 {[%clk 0:00:34]} 27. Rb1 {[%clk 0:00:45]}  Qb5 {[%clk 0:00:31]} 28. Ka1 {[%clk 0:00:36]}  Bxc2 {[%clk 0:00:19]} 29. Qxc2 {[%clk 0:00:34]}  cxb3 {[%clk 0:00:19]} 30. Qc3 {[%clk 0:00:30]}  a4 {[%clk 0:00:19]} 31. Kb2 {[%clk 0:00:28]}  Nb6 {[%clk 0:00:18]} 32. Qc5+ {[%clk 0:00:15]}  Qxc5 {[%clk 0:00:18]} 33. dxc5 {[%clk 0:00:16]}  Nc4+ {[%clk 0:00:18]} 34. Kc3 {[%clk 0:00:17]}  Nxa3 {[%clk 0:00:18]} 35. Ra1 {[%clk 0:00:17]}  Nb5+ {[%clk 0:00:13]} 36. Kb2 {[%clk 0:00:13]}  a3+ {[%clk 0:00:13]} 37. Kxb3 {[%clk 0:00:10]}  Kd7 {[%clk 0:00:12]} 38. Kc2 {[%clk 0:00:07]}  Kc6 {[%clk 0:00:12]} 39. Rgb1 {[%clk 0:00:05]}  Kxc5 {[%clk 0:00:11]} 40. Kd3 {[%clk 0:00:05]}  Kd6 {[%clk 0:00:11]} 41. Rb4 {[%clk 0:00:04]}  Kc5 {[%clk 0:00:10]} 42. Rbb1 {[%clk 0:00:03]}  Rb7 {[%clk 0:00:09]} 43. Rb3 {[%clk 0:00:02]}  Rb6 {[%clk 0:00:09]} 44. Rc1+ {[%clk 0:00:02]}  Kd6 {[%clk 0:00:08]} 45. Rcb1 {[%clk 0:00:02]}  a2 {[%clk 0:00:08]} 46. Ra1 {[%clk 0:00:02]}  Kc5 {[%clk 0:00:08]} 47. Rxa2 {[%clk 0:00:01]}  Nd6 {[%clk 0:00:06]} 48. Rxb6 {[%clk 0:00:00]}  Kxb6 {[%clk 0:00:07]} 0-1


[Site "https://www.chess.com"]